fUST/lending_fUST_20240717
["ID","MTS","AMOUNT","RATE_DAILY","PERIOD"]
[332447097,1721190641285,-500.0,0.00021917,2]
[332447098,1721190641295,-500.0,0.00021917,2]
[332447099,1721190641304,-500.0,0.00021917,2]
[332447100,1721190641313,-500.0,0.00021917,2]
[332447101,1721190641323,-500.0,0.00021917,2]
[332447102,1721190641332,-500.0,0.00021917,2]
[332447103,1721190641341,-500.0,0.00021917,2]
[332447104,1721190641352,-501.83146494,0.00021917,2]
[332447105,1721190641364,-500.0,0.00021917,2]
[332447106,1721190641373,-500.0,0.00021917,2]
[332447107,1721190641383,-500.0,0.00021917,2]
[332447108,1721190641392,-500.0,0.00021917,2]
[332447109,1721190641401,-500.0,0.00021917,2]
[332447110,1721190641411,-500.0,0.00021917,2]
[332447111,1721190641420,-500.0,0.00021917,2]
[332447112,1721190641430,-500.0,0.00021917,2]
[332447113,1721190641439,-500.0,0.00021917,2]
[332447114,1721190641448,-500.0,0.00021917,2]
[332447115,1721190641457,-500.0,0.00021917,2]
[332447116,1721190641466,-500.0,0.00021917,2]
[332447117,1721190641476,-500.0,0.00021917,2]
[332447118,1721190641485,-500.0,0.00021917,2]
[332447119,1721190641494,-501.75326931,0.00021917,2]
[332447120,1721190641504,-500.0,0.00021917,2]
[332447121,1721190641514,-500.0,0.00021917,2]
[332447122,1721190641523,-500.0,0.00021917,2]
[332447123,1721190641532,-575.34229989,0.00021917,2]
[332447124,1721190641542,-500.0,0.00021917,2]
[332447125,1721190641550,-500.0,0.00021917,2]
[332447126,1721190641559,-500.0,0.00021917,2]
[332447127,1721190641568,-500.0,0.00021917,2]
[332447128,1721190641577,-500.0,0.00021917,2]
[332447129,1721190641585,-500.0,0.00021917,2]
[332447130,1721190641594,-502.56263311,0.00021917,2]
[332447131,1721190641603,-500.0,0.00021917,2]
[332447132,1721190641614,-500.0,0.00021917,2]
[332447133,1721190641623,-500.0,0.00021917,2]
[332447134,1721190641632,-500.0,0.00021917,2]
[332447135,1721190641642,-6878.25807542,0.00021917,2]
[332447136,1721190641651,-500.0,0.00021917,2]
[332447137,1721190641660,-265.0,0.00021917,2]
[332447138,1721190641669,-500.0,0.00021917,2]
[332447139,1721190641678,-500.0,0.00021917,2]
[332447140,1721190641687,-500.0,0.00021917,2]
[332447141,1721190641696,-500.0,0.00021917,2]
[332447142,1721190641705,-500.0,0.00021917,2]
[332447143,1721190641714,-500.0,0.00021917,2]
[332447144,1721190641723,-500.0,0.00021917,2]
[332447145,1721190641733,-500.0,0.00021917,2]
[332447146,1721190641742,-500.0,0.00021917,2]
[332447147,1721190641750,-500.0,0.00021917,2]
[332447148,1721190641759,-500.0,0.00021917,2]
[332447149,1721190641768,-500.0,0.00021917,2]
[332447150,1721190641778,-500.0,0.00021917,2]
[332447151,1721190641786,-500.0,0.00021917,2]
[332447152,1721190641795,-500.0,0.00021917,2]
[332447153,1721190641805,-510.73528539,0.00021917,2]
[332447154,1721190641814,-500.0,0.00021917,2]
[332447155,1721190641824,-500.0,0.00021917,2]
[332447156,1721190641833,-500.0,0.00021917,2]
[332447157,1721190641842,-500.0,0.00021917,2]
[332447158,1721190641852,-500.0,0.00021917,2]
[332447159,1721190641863,-500.0,0.00021917,2]
[332447160,1721190641874,-500.0,0.00021917,2]
[332447161,1721190641884,-519.77607853,0.00021917,2]
[332447162,1721190641894,-500.0,0.00021917,2]
[332447163,1721190641904,-500.0,0.00021917,2]
[332447164,1721190641915,-500.0,0.00021917,2]
[332447165,1721190641926,-508.86161878,0.00021917,2]
[332447166,1721190641936,-500.0,0.00021917,2]
[332447167,1721190641947,-500.0,0.00021917,2]
[332447168,1721190641959,-500.0,0.00021917,2]
[332447169,1721190641968,-500.0,0.00021917,2]
[332447170,1721190641978,-500.0,0.00021917,2]
[332447171,1721190641990,-500.0,0.00021917,2]
[332447172,1721190641999,-503.25482998,0.00021917,2]
[332447173,1721190642008,-500.0,0.00021917,2]
[332447174,1721190642019,-500.0,0.00021917,2]
[332447175,1721190642028,-500.0,0.00021917,2]
[332447176,1721190642038,-510.55181764,0.00021917,2]
[332447177,1721190642047,-500.0,0.00021917,2]
[332447178,1721190642056,-500.0,0.00021917,2]
[332447179,1721190642066,-764.99692513,0.00021917,2]
[332447180,1721190642075,-500.0,0.00021917,2]
[332447181,1721190642084,-154.74467129,0.00021917,2]
[332447182,1721190642094,-500.0,0.00021917,2]
[332447183,1721190642104,-8182.96114692,0.00021917,2]
[332447184,1721190642114,-500.0,0.00021917,2]
[332447185,1721190642124,-505.47407513,0.00021917,2]
[332447186,1721190642133,-500.0,0.00021917,2]
[332447187,1721190642142,-500.0,0.00021917,2]
[332447188,1721190642151,-500.0,0.00021917,2]
[332447189,1721190642161,-500.0,0.00021917,2]
[332447190,1721190642170,-515.02343445,0.00021917,2]
[332447191,1721190642179,-500.0,0.00021917,2]
[332447192,1721190642188,-500.0,0.00021917,2]
[332447193,1721190642197,-500.0,0.00021917,2]
[332447194,1721190642206,-500.0,0.00021917,2]
[332447195,1721190642216,-500.0,0.00021917,2]
[332447196,1721190642225,-500.0,0.00021917,2]
[332447197,1721190642234,-500.0,0.00021917,2]
[332447198,1721190642243,-500.0,0.00021917,2]
[332447199,1721190642252,-500.0,0.00021917,2]
[332447200,1721190642262,-500.0,0.00021917,2]
[332447202,1721190642276,-50997.22025258,0.00021917,2]
[332447206,1721190642310,-11257.03314499,0.00021917,2]
[332447207,1721190642433,-414784.27667846,0.00021917,2]
[332447208,1721190642445,-1045.94,0.00021917,2]
[332447209,1721190642457,-661.36020003,0.00021917,2]
[332447210,1721190642468,-1129.02255697,0.00021917,2]
[332447211,1721190642481,-661.064792,0.00021917,2]
[332447218,1721190642909,-626.82,0.00021917,2]
[332447228,1721190769198,208.40328239,0.00014999,2]
[332447229,1721190773082,724.30524087,0.00014999,2]
[332447230,1721190932195,208.28768725,0.00014999,2]
[332447273,1721191826790,-8188.55215204,0.00016255,2]
[332447328,1721191832726,-300.0,0.00018179,2]
[332447330,1721191832736,-772.58812779,0.0001818,2]
[332447346,1721191838032,-4302.41603103,0.0001818,2]
[332447347,1721191838041,-331.93219193,0.000189,2]
[332447348,1721191838051,-600.53012898,0.00019,3]
[332447349,1721191838060,-197.57665127,0.00019,2]
[332447350,1721191838070,-172.967667,0.0001903,2]
[332447351,1721191838079,-250.0,0.00019041,2]
[332447352,1721191838089,-164.673875,0.00019178,2]
[332447353,1721191838098,-165.004539,0.00019178,2]
[332447354,1721191838108,-441.500841,0.00019178,4]
[332447355,1721191838117,-172.967667,0.00019361,2]
[332447356,1721191838126,-172.967667,0.00019691,2]
[332447357,1721191838136,-341.545954,0.00019845,2]
[332447358,1721191838145,-3216.77835367,0.00019885,2]
[332447359,1721191838154,-218.51951574,0.00019889,2]
[332447360,1721191838163,-218.51951573,0.00019892,2]
[332447361,1721191838173,-218.51951573,0.00019895,2]
[332447362,1721191838182,-218.51951573,0.00019897,2]
[332447363,1721191838192,-218.51951573,0.000199,2]
[332447364,1721191838202,-61912.4094032,0.00019976,2]
[332447365,1721191838212,-517.03978075,0.00019985,2]
[332447366,1721191838221,-153077.88882418,0.00019986,2]
[332447367,1721191838231,-500.0,0.00019989,2]
[332447368,1721191838240,-500.0,0.00019989,2]
[332447369,1721191838250,-325.54790105,0.00019989,2]
[332447370,1721191838259,-161.18940812,0.00019989,2]
[332447371,1721191838269,-500.0,0.00019989,2]
[332447372,1721191838278,-500.0,0.00019989,2]
[332447373,1721191838287,-500.0,0.00019989,2]
[332447374,1721191838297,-500.0,0.00019989,2]
[332447375,1721191838307,-500.0,0.00019989,2]
[332447376,1721191838316,-500.0,0.00019989,2]
[332447377,1721191838326,-519.06024172,0.00019989,2]
[332447378,1721191838335,-500.0,0.00019989,2]
[332447379,1721191838344,-500.0,0.00019989,2]
[332447380,1721191838353,-176.3622451,0.00019989,2]
[332447381,1721191838362,-500.0,0.00019989,2]
[332447382,1721191838371,-500.0,0.00019989,2]
[332447383,1721191838381,-500.0,0.00019989,2]
[332447384,1721191838390,-499.85170955,0.00019989,2]
[332447385,1721191838399,-500.0,0.00019989,2]
[332447386,1721191838409,-30956.2047016,0.0001999,2]
[332447387,1721191838420,-154781.023508,0.0001999,2]
[332447388,1721191838430,-420.0,0.00019997,2]
[332447389,1721191838439,-67369.30438211,0.0002,5]
[332447390,1721191838448,-1067.07630449,0.0002,2]
[332447391,1721191838458,-246.97489489,0.0002,2]
[332447392,1721191838467,-281.90674759,0.0002,2]
[332447393,1721191838477,-154.72922386,0.0002,2]
[332447394,1721191838487,-293.89533444,0.0002,2]
[332447395,1721191838497,-154.72922386,0.0002,2]
[332447396,1721191838507,-466977.0083817,0.0002,2]
[332447397,1721191838516,-158.8017905,0.0002,2]
[332447398,1721191838526,-150.112233,0.0002,3]
[332447399,1721191838535,-215.01715484,0.0002,2]
[332447400,1721191838545,-154.88949836,0.0002,2]
[332447401,1721191838556,-435.0,0.0002,2]
[332447402,1721191838565,-174.15623839,0.0002,2]
[332447403,1721191838575,-228.33337167,0.0002,2]
[332447404,1721191838585,-1168.32811277,0.0002,2]
[332447405,1721191838597,-150.112233,0.0002,5]
[332447406,1721191838608,-154.74467129,0.0002,2]
[332447407,1721191838618,-172.967667,0.00020022,2]
[332447408,1721191838628,-341.545954,0.00020099,2]
[332447409,1721191838638,-150.112233,0.000202,2]
[332447410,1721191838652,-150.112233,0.000202,3]
[332447411,1721191838662,-1121.86955255,0.00020244,2]
[332447412,1721191838671,-150.112233,0.000203,3]
[332447413,1721191838680,-341.545954,0.00020355,2]
[332447414,1721191838697,-150.112233,0.000204,3]
[332447415,1721191838713,-4953.84625735,0.00020458,2]
[332447416,1721191838725,-150.112233,0.000205,5]
[332447417,1721191838735,-150.112233,0.000206,3]
[332447418,1721191838747,-4953.84625735,0.00020661,2]
[332447419,1721191838758,-150.112233,0.000207,4]
[332447420,1721191838769,-341.545954,0.00020791,2]
[332447421,1721191838779,-150.112233,0.000208,4]
[332447422,1721191838788,-341.545954,0.0002084,2]
[332447423,1721191838798,-583.4,0.00020851,2]
[332447424,1721191838809,-150.112233,0.000209,3]
[332447425,1721191838819,-300.24421429,0.00021,2]
[332447426,1721191838828,-150.112233,0.00021,4]
[332447427,1721191838837,-295.08989123,0.00021,2]
[332447428,1721191838847,-285.0,0.00021,2]
[332447429,1721191838857,-248.11643315,0.00021,2]
[332447430,1721191838866,-150.112233,0.00021,2]
[332447431,1721191838876,-4953.84625735,0.00021042,2]
[332447432,1721191838885,-722.183592,0.00021096,2]
[332447433,1721191838895,-150.112233,0.000212,2]
[332447434,1721191838905,-150.112233,0.000212,4]
[332447435,1721191838914,-645.09347763,0.00021256,2]
[332447436,1721191838924,-583.4,0.00021273,2]
[332447437,1721191838933,-341.545954,0.00021276,2]
[332447438,1721191838943,-150.112233,0.000213,3]
[332447439,1721191838953,-4953.84625735,0.0002132,2]
[332447440,1721191838962,-4953.84625735,0.00021372,2]
[332447441,1721191838972,-150.112233,0.000214,3]
[332447442,1721191838981,-289.18175283,0.00021423,2]
[332447443,1721191838990,-500.0,0.00021465,7]
[332447444,1721191838999,-500.0,0.00021465,7]
[332447445,1721191839009,-500.0,0.00021465,7]
[332447446,1721191839019,-500.0,0.00021465,7]
[332447447,1721191839031,-500.0,0.00021465,7]
[332447448,1721191839040,-500.0,0.00021465,7]
[332447449,1721191839051,-500.0,0.00021465,7]
[332447450,1721191839061,-597.21,0.00021465,7]
[332447451,1721191839071,-150.112233,0.000215,4]
[332447452,1721191839082,-150.112233,0.000215,2]
[332447453,1721191839093,-341.545954,0.00021571,2]
[332447454,1721191839103,-293.6030539,0.0002169,2]
[332447455,1721191839114,-293.6030539,0.0002169,2]
[332447456,1721191839126,-293.6030539,0.0002169,2]
[332447457,1721191839137,-293.6030539,0.0002169,2]
[332447458,1721191839147,-293.6030539,0.0002169,2]
[332447459,1721191839157,-594.6690493,0.0002169,2]
[332447460,1721191839167,-583.4,0.00021696,2]
[332447461,1721191839176,-150.112233,0.000217,4]
[332447462,1721191839186,-4953.84625736,0.00021765,2]
[332447463,1721191839195,-3000.0,0.000218,2]
[332447464,1721191839205,-341.5459542,0.00021801,2]
[332447465,1721191839214,-293.5691494,0.00021804,2]
[332447466,1721191839224,-3000.0,0.0002181,2]
[332447467,1721191839233,-400.35722804,0.00021817,2]
[332447468,1721191839243,-3000.0,0.0002182,2]
[332447469,1721191839253,-3000.0,0.0002183,2]
[332447470,1721191839263,-3000.0,0.0002184,2]
[332447471,1721191839272,-3000.0,0.0002185,2]
[332447472,1721191839282,-3000.0,0.0002186,2]
[332447473,1721191839292,-3000.0,0.0002187,2]
[332447474,1721191839303,-151.27311453,0.00021873,2]
[332447475,1721191839313,-3000.0,0.0002188,2]
[332447476,1721191839322,-3000.0,0.0002189,2]
[332447477,1721191839332,-3000.0,0.000219,2]
[332447478,1721191839344,-3000.0,0.0002191,2]
[332447479,1721191839353,-26583.44906496,0.00021917,5]
[332447480,1721191839362,-500.0,0.00021917,2]
[332447481,1721191839371,-500.0,0.00021917,2]
[332447482,1721191839381,-500.0,0.00021917,2]
[332447484,1721191839390,-500.0,0.00021917,2]
[332447485,1721191839399,-500.0,0.00021917,2]
[332447486,1721191839408,-500.0,0.00021917,2]
[332447487,1721191839418,-500.0,0.00021917,2]
[332447488,1721191839429,-509.43091596,0.00021917,2]
[332447489,1721191839438,-500.0,0.00021917,2]
[332447491,1721191839449,-589.85707216,0.00021917,2]
[332447492,1721191839460,-500.0,0.00021917,2]
[332447493,1721191839470,-500.0,0.00021917,2]
[332447494,1721191839479,-510.63674784,0.00021917,2]
[332447495,1721191839489,-500.0,0.00021917,2]
[332447496,1721191839499,-500.0,0.00021917,2]
[332447497,1721191839509,-154.74467129,0.00021917,2]
[332447498,1721191839521,-500.0,0.00021917,2]
[332447499,1721191839533,-500.0,0.00021917,2]
[332447500,1721191839543,-255.12937332,0.00021917,2]
[332447501,1721191839553,-500.0,0.00021917,2]
[332447503,1721191839563,-500.0,0.00021917,2]
[332447504,1721191839576,-500.0,0.00021917,2]
[332447505,1721191839586,-500.0,0.00021917,2]
[332447506,1721191839595,-500.0,0.00021917,2]
[332447507,1721191839606,-500.0,0.00021917,2]
[332447508,1721191839616,-500.0,0.00021917,2]
[332447509,1721191839627,-500.0,0.00021917,2]
[332447510,1721191839637,-500.0,0.00021917,2]
[332447512,1721191839649,-500.0,0.00021917,2]
[332447513,1721191839660,-500.0,0.00021917,2]
[332447514,1721191839671,-500.0,0.00021917,2]
[332447516,1721191839680,-500.0,0.00021917,2]
[332447517,1721191839693,-500.0,0.00021917,2]
[332447518,1721191839704,-500.0,0.00021917,2]
[332447519,1721191839714,-500.94646224,0.00021917,2]
[332447520,1721191839724,-500.0,0.00021917,2]
[332447521,1721191839736,-500.0,0.00021917,2]
[332447522,1721191839747,-500.0,0.00021917,2]
[332447523,1721191839756,-500.0,0.00021917,2]
[332447524,1721191839766,-504.92971963,0.00021917,2]
[332447525,1721191839777,-500.0,0.00021917,2]
[332447526,1721191839788,-500.0,0.00021917,2]
[332447527,1721191839798,-3021.07,0.00021917,2]
[332447528,1721191839809,-500.0,0.00021917,2]
[332447529,1721191839820,-500.0,0.00021917,2]
[332447530,1721191839830,-500.0,0.00021917,2]
[332447531,1721191839840,-500.0,0.00021917,2]
[332447532,1721191839849,-1691.71,0.00021917,2]
[332447533,1721191839859,-500.0,0.00021917,2]
[332447534,1721191839869,-258.51117403,0.00021917,2]
[332447535,1721191839879,-500.0,0.00021917,2]
[332447536,1721191839889,-500.0,0.00021917,2]
[332447538,1721191839899,-500.0,0.00021917,2]
[332447539,1721191839908,-461.80070194,0.00021917,2]
[332447540,1721191839918,-500.0,0.00021917,2]
[332447541,1721191839928,-500.0,0.00021917,2]
[332447542,1721191839940,-500.0,0.00021917,2]
[332447544,1721191839952,-500.0,0.00021917,2]
[332447546,1721191839963,-500.0,0.00021917,2]
[332447548,1721191839973,-500.0,0.00021917,2]
[332447549,1721191839983,-500.0,0.00021917,2]
[332447550,1721191839994,-500.0,0.00021917,2]
[332447551,1721191840005,-502.82370706,0.00021917,2]
[332447552,1721191840016,-500.0,0.00021917,2]
[332447554,1721191840028,-511.36376727,0.00021917,2]
[332447556,1721191840038,-341.02257432,0.00021917,2]
[332447558,1721191840049,-500.0,0.00021917,2]
[332447559,1721191840061,-500.0,0.00021917,2]
[332447560,1721191840071,-500.0,0.00021917,2]
[332447561,1721191840080,-500.0,0.00021917,2]
[332447563,1721191840089,-500.0,0.00021917,2]
[332447564,1721191840099,-500.0,0.00021917,2]
[332447565,1721191840109,-500.25424201,0.00021917,2]
[332447566,1721191840119,-175.18034061,0.00021917,2]
[332447567,1721191840543,-324.81965939,0.00021917,2]
[332447568,1721191840555,-500.0,0.00021917,2]
[332447569,1721191840565,-500.0,0.00021917,2]
[332447570,1721191840574,-501.63759292,0.00021917,2]
[332447571,1721191840584,-500.0,0.00021917,2]
[332447572,1721191840593,-500.0,0.00021917,2]
[332447573,1721191840603,-500.0,0.00021917,2]
[332447574,1721191840613,-500.0,0.00021917,2]
[332447575,1721191840623,-500.79673516,0.00021917,2]
[332447576,1721191840632,-500.0,0.00021917,2]
[332447577,1721191840642,-500.0,0.00021917,2]
[332447578,1721191840655,-500.0,0.00021917,2]
[332447579,1721191840664,-500.0,0.00021917,2]
[332447580,1721191840675,-500.0,0.00021917,2]
[332447581,1721191840684,-515.23946309,0.00021917,2]
[332447582,1721191840695,-469.03692436,0.00021917,2]
[332447583,1721191840705,-500.0,0.00021917,2]
[332447584,1721191840715,-500.0,0.00021917,2]
[332447585,1721191840726,-500.0,0.00021917,2]
[332447586,1721191840737,-500.0,0.00021917,2]
[332447587,1721191840746,-500.0,0.00021917,2]
[332447588,1721191840755,-500.0,0.00021917,2]
[332447589,1721191840764,-500.0,0.00021917,2]
[332447590,1721191840773,-290.1329145,0.00021917,2]
[332447591,1721191840783,-500.0,0.00021917,2]
[332447592,1721191840793,-500.0,0.00021917,2]
[332447593,1721191840804,-175.7424169,0.00021917,2]
[332447594,1721191840814,-500.0,0.00021917,2]
[332447595,1721191840823,-500.0,0.00021917,2]
[332447596,1721191840833,-500.0,0.00021917,2]
[332447597,1721191840843,-502.47112183,0.00021917,2]
[332447598,1721191840852,-500.0,0.00021917,2]
[332447599,1721191840862,-500.0,0.00021917,2]
[332447600,1721191840871,-500.0,0.00021917,2]
[332447601,1721191840881,-500.0,0.00021917,2]
[332447602,1721191840890,-500.0,0.00021917,2]
[332447603,1721191840900,-500.0,0.00021917,2]
[332447604,1721191840910,-500.0,0.00021917,2]
[332447605,1721191840919,-500.0,0.00021917,2]
[332447606,1721191840929,-500.0,0.00021917,2]
[332447607,1721191840939,-500.0,0.00021917,2]
[332447608,1721191840948,-500.0,0.00021917,2]
[332447609,1721191840958,-500.0,0.00021917,2]
[332447610,1721191840967,-500.0,0.00021917,2]
[332447611,1721191840976,-500.0,0.00021917,2]
[332447612,1721191840985,-500.0,0.00021917,2]
[332447613,1721191840994,-500.0,0.00021917,2]
[332447614,1721191841004,-500.0,0.00021917,2]
[332447615,1721191841014,-500.0,0.00021917,2]
[332447616,1721191841024,-227.51453404,0.00021917,2]
[332447617,1721191841034,-500.0,0.00021917,2]
[332447618,1721191841043,-500.0,0.00021917,2]
[332447619,1721191841054,-500.0,0.00021917,2]
[332447620,1721191841064,-500.0,0.00021917,2]
[332447621,1721191841073,-500.0,0.00021917,2]
[332447622,1721191841082,-500.0,0.00021917,2]
[332447623,1721191841092,-500.0,0.00021917,2]
[332447624,1721191841102,-500.0,0.00021917,2]
[332447625,1721191841112,-501.67529165,0.00021917,2]
[332447626,1721191841122,-500.0,0.00021917,2]
[332447627,1721191841131,-500.0,0.00021917,2]
[332447628,1721191841141,-500.0,0.00021917,2]
[332447629,1721191841150,-500.0,0.00021917,2]
[332447630,1721191841160,-500.0,0.00021917,2]
[332447631,1721191841169,-500.0,0.00021917,2]
[332447632,1721191841180,-500.0,0.00021917,2]
[332447633,1721191841189,-500.0,0.00021917,2]
[332447634,1721191841198,-500.0,0.00021917,2]
[332447635,1721191841208,-500.0,0.00021917,2]
[332447636,1721191841217,-500.0,0.00021917,2]
[332447637,1721191841227,-500.0,0.00021917,2]
[332447638,1721191841240,-500.0,0.00021917,2]
[332447639,1721191841250,-500.0,0.00021917,2]
[332447640,1721191841259,-500.0,0.00021917,2]
[332447641,1721191841269,-500.0,0.00021917,2]
[332447642,1721191841278,-500.0,0.00021917,2]
[332447643,1721191841288,-500.0,0.00021917,2]
[332447644,1721191841298,-502.81409546,0.00021917,2]
[332447645,1721191841310,-500.0,0.00021917,2]
[332447646,1721191841321,-500.0,0.00021917,2]
[332447647,1721191841330,-500.0,0.00021917,2]
[332447648,1721191841340,-500.0,0.00021917,2]
[332447649,1721191841351,-500.0,0.00021917,2]
[332447650,1721191841360,-500.0,0.00021917,2]
[332447651,1721191841370,-500.0,0.00021917,2]
[332447652,1721191841381,-500.0,0.00021917,2]
[332447653,1721191841391,-500.0,0.00021917,2]
[332447654,1721191841401,-500.0,0.00021917,2]
[332447655,1721191841411,-514.69579038,0.00021917,2]
[332447656,1721191841421,-500.0,0.00021917,2]
[332447657,1721191841432,-500.0,0.00021917,2]
[332447658,1721191841441,-500.0,0.00021917,2]
[332447659,1721191841452,-500.0,0.00021917,2]
[332447660,1721191841463,-500.0,0.00021917,2]
[332447661,1721191841472,-500.0,0.00021917,2]
[332447662,1721191841482,-500.0,0.00021917,2]
[332447663,1721191841491,-500.0,0.00021917,2]
[332447664,1721191841501,-500.0,0.00021917,2]
[332447665,1721191841511,-500.0,0.00021917,2]
[332447666,1721191841522,-500.0,0.00021917,2]
[332447667,1721191841532,-500.0,0.00021917,2]
[332447668,1721191841541,-500.0,0.00021917,2]
[332447669,1721191841551,-500.0,0.00021917,2]
[332447670,1721191841562,-548.85152488,0.00021917,2]
[332447671,1721191841572,-500.0,0.00021917,2]
[332447672,1721191841581,-509.20848742,0.00021917,2]
[332447673,1721191841591,-500.0,0.00021917,2]
[332447674,1721191841600,-500.0,0.00021917,2]
[332447675,1721191841610,-501.02330307,0.00021917,2]
[332447676,1721191841619,-500.0,0.00021917,2]
[332447677,1721191841629,-500.0,0.00021917,2]
[332447678,1721191841638,-500.0,0.00021917,2]
[332447679,1721191841648,-500.0,0.00021917,2]
[332447680,1721191841661,-500.0,0.00021917,2]
[332447681,1721191841670,-500.0,0.00021917,2]
[332447682,1721191841680,-507.9336107,0.00021917,2]
[332447683,1721191841690,-500.0,0.00021917,2]
[332447684,1721191841700,-500.0,0.00021917,2]
[332447685,1721191841710,-500.0,0.00021917,2]
[332447686,1721191841720,-500.0,0.00021917,2]
[332447687,1721191841730,-500.0,0.00021917,2]
[332447688,1721191841740,-500.0,0.00021917,2]
[332447689,1721191841750,-500.0,0.00021917,2]
[332447690,1721191841759,-500.0,0.00021917,2]
[332447691,1721191841768,-500.0,0.00021917,2]
[332447692,1721191841778,-500.0,0.00021917,2]
[332447693,1721191841789,-500.0,0.00021917,2]
[332447694,1721191841799,-500.0,0.00021917,2]
[332447695,1721191841812,-500.0,0.00021917,2]
[332447696,1721191841823,-500.0,0.00021917,2]
[332447697,1721191841834,-500.0,0.00021917,2]
[332447698,1721191841843,-500.0,0.00021917,2]
[332447699,1721191841852,-500.0,0.00021917,2]
[332447700,1721191841861,-500.0,0.00021917,2]
[332447701,1721191841871,-502.39101307,0.00021917,2]
[332447702,1721191841882,-500.0,0.00021917,2]
[332447703,1721191841893,-500.0,0.00021917,2]
[332447704,1721191841903,-500.0,0.00021917,2]
[332447705,1721191841914,-504.11650853,0.00021917,2]
[332447706,1721191841925,-500.0,0.00021917,2]
[332447707,1721191841936,-500.0,0.00021917,2]
[332447708,1721191841946,-511.10227379,0.00021917,2]
[332447709,1721191841957,-404.78616649,0.00021917,2]
[332447710,1721191841967,-500.0,0.00021917,2]
[332447711,1721191841978,-505.09124808,0.00021917,2]
[332447712,1721191841988,-500.0,0.00021917,2]
[332447713,1721191842000,-437.06969733,0.00021917,2]
[332447714,1721191842009,-501.62515086,0.00021917,2]
[332447715,1721191842019,-500.0,0.00021917,2]
[332447716,1721191842029,-500.0,0.00021917,2]
[332447717,1721191842039,-557.64425947,0.00021917,2]
[332447718,1721191842048,-518.88552867,0.00021917,2]
[332447719,1721191842059,-507.71024829,0.00021917,2]
[332447720,1721191842068,-501.76837493,0.00021917,2]
[332447721,1721191842078,-500.0,0.00021917,2]
[332447722,1721191842088,-505.94928361,0.00021917,2]
[332447723,1721191842097,-501.24409689,0.00021917,2]
[332447724,1721191842107,-500.0,0.00021917,2]
[332447725,1721191842117,-500.0,0.00021917,2]
[332447726,1721191842126,-157.39665549,0.00021917,2]
[332447727,1721191842136,-500.0,0.00021917,2]
[332447728,1721191842145,-500.0,0.00021917,2]
[332447729,1721191842155,-500.0,0.00021917,2]
[332447730,1721191842164,-500.0,0.00021917,2]
[332447731,1721191842174,-500.0,0.00021917,2]
[332447732,1721191842184,-500.0,0.00021917,2]
[332447733,1721191842194,-501.92660683,0.00021917,2]
[332447734,1721191842203,-503.63334197,0.00021917,2]
[332447735,1721191842213,-500.0,0.00021917,2]
[332447736,1721191842222,-500.0,0.00021917,2]
[332447737,1721191842231,-516.98125419,0.00021917,2]
[332447738,1721191842241,-500.0,0.00021917,2]
[332447739,1721191842251,-500.0,0.00021917,2]
[332447740,1721191842261,-500.0,0.00021917,2]